Cogmind - Beta 16 @@@ ROGUE MODE // 2026.01.19 @ 17:32:39 Player: YoKa Result: Destroyed by D-53 Grenadier with Mini Grenade Launcher Performance ------------- Evolutions (0) 0 Regions Visited (2) 400 Robots Destroyed (6) 30 Value Destroyed (105) 105 Prototype IDs (0) 0 Alien Tech Used (0) 0 Bonus (0) 0 TOTAL SCORE: 535 Bonus ------- None Cogmind --------- Core Integrity 0/250 Matter 300/300 Energy 100/100 System Corruption 0% Temperature Cool (0) Movement Core (150) Ox2 Location -10/Mines Parts ------- > --- POWER (1) -------- (None) > --- PROPULSION (2) --- (None) > --- UTILITY (2) ------ Small Storage Unit Seismic Detector > --- WEAPON (2) ------- Datajack > --- INVENTORY (8) ---- Ion Engine Aluminum Leg Huge Storage Unit Light Armor Plating Light Armor Plating Light Assault Rifle Light Assault Rifle Peak State ------------ > --- POWER ------------ Ion Engine > --- PROPULSION ------- Aluminum Leg Aluminum Leg > --- UTILITY ---------- Small Storage Unit Seismic Detector > --- WEAPON ----------- Assault Rifle Rocket Launcher > --- INVENTORY -------- Ion Engine Aluminum Leg Huge Storage Unit Light Armor Plating Light Armor Plating Light Assault Rifle Light Assault Rifle Datajack [Rating: 8] Favorites ----------- Power Ion Engine Engine Ion Engine Propulsion Aluminum Leg Leg Aluminum Leg Utility Small Storage Unit Device Seismic Detector Storage Small Storage Unit Weapon Assault Rifle Ballistic Gun Assault Rifle Launcher Rocket Launcher Special Melee Weapon Datajack Build | -11 -10 -10 ------- Run | Yrd Mat Min Slots Evolved . | . . . Power . | . . . Propulsion . | . . . Utility . | . . . Weapon . | . . . Parts Attached 11 | 7 2 2 Power 1 | 1 . . Engine 1 | 1 . . Core . | . . . Reactor . | . . . Propulsion 2 | 2 . . Treads . | . . . Leg 2 | 2 . . Wheel . | . . . Hover . | . . . Flight . | . . . Utility 3 | 2 1 . Device 1 | 1 . . Storage 2 | 1 1 . Processor . | . . . Hackware . | . . . Protection . | . . . Artifact . | . . . Weapon 5 | 2 1 2 Energy Gun . | . . . Energy Cannon . | . . . Ballistic Gun 3 | 2 . 1 Ballistic Cannon . | . . . Launcher 1 | . . 1 Special Weapon . | . . . Impact Weapon . | . . . Slashing Weapon . | . . . Piercing Weapon . | . . . Special Melee Weapon 1 | . 1 . Unidentified Prototypes . | . . . Parts Lost 5 | . . 5 Power 1 | . . 1 Propulsion 2 | . . 2 Utility . | . . . Weapon 2 | . . 2 Highest Loss Streak 5 | . . 5 To Critical Strikes . | . . . Average Backups 5 | 1 5 7 Power . | . 1 1 Propulsion . | . . 1 Utility 1 | . 1 3 Weapon 1 | . 1 2 Tool/Special . | . . . Unused Backups 5 | . . 5 Power 1 | . . 1 Propulsion 1 | . . 1 Utility 2 | . . 2 Weapon 1 | . . 1 Tool/Special . | . . . Average Slot Usage (%) 99 | . 100 98 Engine 14 | . 14 14 Leg 27 | . 28 27 Device 14 | . 14 14 Storage 14 | . 14 14 Ballistic Gun 20 | . 23 16 Launcher 3 | . . 8 Special Melee Weapon 4 | . 4 3 Peak Build Rating 8 | 7 7 8 Average Rating 6 | 4 7 7 On Entrance 4 | . 7 7 Avg Prop Armor Cover (%) . | . . . Naked Turns . | . . . Heaviest Build 17 | 14 14 17 Greatest Support 20 | 20 20 20 Greatest Overweight (x) 3 | 1 . 3 Average Overweight (x) . | . . . Largest Inventory Capacity 25 | 8 25 8 Average Capacity 7 | 6 8 8 Most Carried 8 | 5 8 8 Average Carried 5 | 2 5 7 Final Capacity 8 | 8 8 8 Final Carried 8 | 2 8 7 Class Distribution -------------------- 100% | Mutant Dominant Class ---------------- Mutant | -10/Materials Mutant | -10/Mines Resources | -11 -10 -10 ----------- Run | Yrd Mat Min Matter Collected 434 | 210 133 91 Remotely . | . . . Salvage Created 154 | 10 144 . Parts 13 | 5 8 . Haulers Intercepted . | . . . Recyclers Shooed . | . . . Parts Field Recycled . | . . . Retrieved Matter . | . . . Parts Self-Destructed . | . . . Prevented . | . . . Parts Restored . | . . . Kills | -11 -10 -10 ------- Run | Yrd Mat Min Combat Hostiles Destroyed 5 | . 5 . Guns 5 | . 5 . Classes Destroyed 3 | 1 2 . Tunneler 1 | 1 . . Swarmer 3 | . 3 . Grunt 2 | . 2 . Best Kill Streak 5 | 1 5 . Combat Bots Only 5 | . 5 . Max Kills in Single Turn 2 | 1 2 . Gunslinging 1 | . 1 . Exploded . | . . . Melee . | . . . Uniques/NPCs Destroyed . | . . . Combat | -11 -10 -10 -------- Run | Yrd Mat Min Hostile Shots Fired 48 | . 29 19 Missed 11 | . 7 4 Hits 37 | . 22 15 Melee 2 | . . 2 Projectile 35 | . 22 13 AOE 13 | . . 13 Critical Strikes 1 | . 1 . Damage Taken 807 | . 214 593 Core 263 | . 93 170 Absorbed by Shields . | . . . Core Remaining (%) 100 | 100 . . Volleys Fired 14 | 1 10 3 Largest 2 | 2 2 1 Hottest 40 | 40 40 20 Shots Fired 24 | 2 19 3 Gun 24 | 2 19 3 Cannon . | . . . Launcher . | . . . Special . | . . . Kinetic 24 | 2 19 3 Thermal . | . . . Explosive . | . . . Electromagnetic . | . . . Robot Hit Streak 7 | 1 7 1 Robot Miss Streak 2 | . 1 2 Penetration Max . | . . . Secondary Targets 3 | . 3 . Max Gunslinging Chain 1 | . 1 . Shots Hit Robots 25 | 1 18 6 Core Hits 8 | 1 7 . Critical Kills . | . . . Critical Parts Destroyed . | . . . Critical Strikes . | . . . Melee Attacks 8 | . 3 5 Impact . | . . . Slashing . | . . . Piercing . | . . . Sneak Attacks 6 | . 2 4 Combat Hostiles . | . . . Follow-up Attacks . | . . . Damage Inflicted 190 | 13 162 15 Guns 190 | 13 162 15 Cannons . | . . . Explosions . | . . . Melee . | . . . Ramming . | . . . Kinetic 190 | 13 162 15 Thermal . | . . . Explosive . | . . . Electromagnetic . | . . . Impact . | . . . Slashing . | . . . Piercing . | . . . Highest Corruption . | . . . Average Corruption . | . . . Corruption Purged . | . . . Corruption Blocked . | . . . Overload Shots . | . . . Overflow Damage . | . . . Projectiles . | . . . Explosions . | . . . Melee . | . . . Knockbacks . | . . . Impact . | . . . Kinetic . | . . . Secondary . | . . . Self-Inflicted Damage . | . . . Shots . | . . . Rammed . | . . . Targets Rammed . | . . . Kicked . | . . . Crushed . | . . . Highest Temperature 6 | . 6 2 Average Temperature 5 | . 6 2 Received Heat Transfer 77 | . 57 20 Siege Activations . | . . . Martial Activations . | . . . Shielding Activations . | . . . Robots Disrupted . | . . . Combat Hostiles . | . . . Robots Corrupted . | . . . Combat Hostiles . | . . . Parts Fried . | . . . Impact Corruptions . | . . . Robots Melted . | . . . Combat Hostiles . | . . . Parts Melted . | . . . Heat Transferred . | . . . Parts Sabotaged . | . . . Parts Stolen . | . . . Parts Stripped . | . . . Power Chain Reactions . | . . . Alert | -11 -10 -10 ------- Run | Yrd Mat Min Maximum Alert Level . | . . . Low Security (%) 100 | 100 100 100 Level 1 . | . . . Level 2 . | . . . Level 3 . | . . . Level 4 . | . . . Level 5 . | . . . High Security . | . . . Max Security . | . . . Peak Influence 100 | 5 100 33 Initial 33 | . . 33 Average 23 | 1 40 5 Influence Increases 225 | 5 220 . Destroy 0b10 Robot/C 100 | . 100 . Destroy 0b10 Robot/NC 5 | 5 . . Destroy Leader 10 | . 10 . Successful Hack 5 | . 5 . Lose Combat Pursuer 105 | . 105 . Influence Decreases 225 | 5 135 85 Entered New Map 52 | . . 52 Time Decay 173 | 5 135 33 Squads Dispatched 3 | . 3 . Investigation 3 | . 3 . Extermination . | . . . Reinforcement . | . . . Assault . | . . . Garrison . | . . . Intercept . | . . . Searches Triggered . | . . . Construction Impeded . | . . . Haulers Reinforced . | . . . Active Scanning Responses . | . . . Cargo Convoy Interrupts . | . . . Stealth | -11 -10 -10 --------- Run | Yrd Mat Min Distress Signals 1 | . 1 . Communications Jammed . | . . . Distress Signals . | . . . Times Spotted 23 | . 16 7 Peak Tracking Total 7 | . 7 5 Tactical Retreats 4 | . 3 1 Traps | -11 -10 -10 ------- Run | Yrd Mat Min Traps Triggered 2 | . 2 . Indirectly . | . . . Trap Hack Attempts . | . . . Triggered . | . . . Disarmed . | . . . Reprogrammed . | . . . Reused . | . . . Traps Extracted . | . . . Installed . | . . . Triggered . | . . . Machines | -11 -10 -10 ---------- Run | Yrd Mat Min Machines Disabled . | . . . Max in Single Turn . | . . . Machines Repaired . | . . . Machines Dismantled . | . . . Machines Sabotaged . | . . . Overloaded Fab Kills . | . . . Hacking | -11 -10 -10 --------- Run | Yrd Mat Min Machines Accessed 2 | . 2 . Terminals 2 | . 2 . Fabricators . | . . . Repair Stations . | . . . Recycling Units . | . . . Scanalyzers . | . . . Garrison Access . | . . . Total Hacks 7 | . 7 . Successful 5 | . 5 . Failed 2 | . 2 . Catastrophic . | . . . Database Lockouts . | . . . Manual 7 | . 7 . Terminals 7 | . 7 . Fabricators . | . . . Repair Stations . | . . . Recycling Units . | . . . Scanalyzers . | . . . Garrison Access . | . . . Terminal Hacks 3 | . 3 . Locate Traps 2 | . 2 . Zone Layout 1 | . 1 . Fabricator Hacks . | . . . Repair Station Hacks . | . . . Recycling Unit Hacks . | . . . Scanalyzer . | . . . Garrison Access Hacks . | . . . Unauthorized Hacks 2 | . 2 . Terminals 2 | . 2 . Assimilate 2 | . 2 . Fabricators . | . . . Repair Stations . | . . . Recycling Units . | . . . Scanalyzers . | . . . Garrison Access . | . . . Data Cores Recovered . | . . . Used . | . . . Hacking Detections 2 | . 2 . Full Trace Events 1 | . 1 . Feedback Events . | . . . Feedback Blocked . | . . . Robot Schematics Acquired . | . . . Robots Built . | . . . Authchips . | . . . Time . | . . . Total Robot Build Rating . | . . . Part Schematics Acquired . | . . . Parts Built . | . . . Authchips . | . . . Time . | . . . Total Part Build Rating . | . . . Part Studies Acquired . | . . . Parts Repaired . | . . . Time . | . . . Parts Recycled . | . . . Recycled Matter . | . . . Retrieved Matter . | . . . Retrieved Components . | . . . Parts Scanalyzed . | . . . Part Schematics Acquired . | . . . Parts Damaged . | . . . Bothacking | -11 -10 -10 ------------ Run | Yrd Mat Min Used RIF Installer . | . . . Robots Hacked 3 | . 1 2 Non-combat 3 | . 1 2 Combat . | . . . Robot Hacks Applied 4 | . 1 3 parse_system 2 | . 1 1 no_distress 2 | . . 2 Relay Couplers Released . | . . . Fabnet Peak Effective % . | . . . Robots Rewired . | . . . Allies Hacked . | . . . Hacks Repelled . | . . . Allies | -11 -10 -10 -------- Run | Yrd Mat Min Total Allies . | . . . Largest Group . | . . . Highest-Rated Group . | . . . Highest-Rated Ally . | . . . Total Orders . | . . . Ally Attacks . | . . . Total Damage . | . . . Kills . | . . . Allies Corrupted . | . . . Allies Melted . | . . . Intel | -11 -10 -10 ------- Run | Yrd Mat Min Active Infowar (turns) 650 | 22 364 264 Seismic 650 | 22 364 264 Robot Analysis Total . | . . . Derelict Logs Recovered 1 | . . 1 Drone Launches . | . . . Drone Recoveries . | . . . Exploration | -11 -10 -10 ------------- Run | Yrd Mat Min Turns Passed 700 | 72 364 264 Spaces Moved 450 | 48 248 154 Core 11 | 10 . 1 Treads . | . . . Legs 439 | 38 248 153 Wheels . | . . . Hover . | . . . Flight . | . . . Fastest Speed 50 | 50 120 120 Average Speed 119 | 111 120 120 Slowest Speed 200 | 120 120 200 Overloaded Moves . | . . . Propulsion Burnouts . | . . . Robots Hopped . | . . . Potential Cave-ins . | . . . Cave-ins Triggered . | . . . Exploration Rate (%) 28 | 3 45 37 Regions Visited 2 Branch Regions 1 Pre-discovered Areas 1 | . . 1 Known Exits Taken . | . . . Unknown Exits Taken 2 | 1 1 . Scrap Searched 1 | . . 1 Spaces Dug . | . . . Terrain Destroyed . | . . . Melee . | . . . Projectile . | . . . AOE . | . . . Terrain Rammed . | . . . Walls Destroyed . | . . . Machines Disabled . | . . . Actions | -11 -10 -10 --------- Run | Yrd Mat Min Total 581 | 64 294 223 Wait 74 | . 25 49 Move 448 | 47 247 154 Hop . | . . . Pick Up 16 | 9 6 1 Fast Attach . | . . . Attach 8 | 7 . 1 Detach . | . . . Swap 12 | . 3 9 Drop 1 | . . 1 Fire 14 | 1 10 3 Melee 8 | . 3 5 Ram . | . . . Kick . | . . . Crush . | . . . Escape Stasis . | . . . Rewire . | . . . Trap . | . . . Miscellaneous . | . . . Route ------- -11/Scrapyard -10/Materials (discovered 2 exits: [*Min x2]) -10/Mines (discovered 1 exit: [*Mat]) History --------- Turn | Location | Event 6 | -11/Scrapyard | Discovered new exit (range 16) 73 | -11/Scrapyard | Entered Materials 74 | -10/Materials | Met a group of wandering Federalists 163 | -10/Materials | Discovered new exit (range 15) 192 | -10/Materials | Lost 4 allies 301 | -10/Materials | Build established: Mutant 354 | -10/Materials | Discovered new exit (range 9) 437 | -10/Materials | Entered Mines 446 | -10/Mines | Discovered new exit (range 8) 491 | -10/Mines | Met a Derelict bent on vengeance 537 | -10/Mines | Received a Rocket Launcher from a helpful Derelict 659 | -10/Mines | Assembled infested the area 690 | -10/Mines | Core integrity fell below 50% 700 | -10/Mines | Core integrity fell below 20% 701 | -10/Mines | Destroyed by D-53 Grenadier with Mini Grenade Launcher Last Messages --------------- Jacked U-05 Engineer... K-01 Serf destroyed. Extracted 41 matter. as-61972 powers down. as-83599 powers down. as-62338 sneak attacks. QR-ZZA(g): "UNAWARE KILLED MY BEST FRIEND! VENGEANCE!" C-45 Heavy ARC bursts open, deploying its payload. D-53 Grenadier unfolds itself. Rocket Launcher destroyed. The unstable cave ceiling collapses. QR-ZZA(g) destroyed. Aluminum Leg destroyed. The unstable cave ceiling collapses. Aluminum Leg destroyed. The unstable cave ceiling collapses. Assault Rifle destroyed. Ion Engine destroyed. Map ----- +----------------------------------------------------+ | ??????????????????# ###?# ?????????? #?????? | | ??????????????????# ### #?????????## #?????? | | ???????????????????# ## #????????## #####?? | | ????????????????????# # ####????## ### | | ?????????????????????# ###### < | | ?????????????????????## ## | | ?????????????????????## ### ### | | ??????????????????#### ##?## ###### ###### | | ?????????????????## ##???# #????# ##?# | | ????????????????## ##???# #????## ##??# | | ????????????????# ##??# #?????# ##???# | | ????????????????# ##?# #?????# ###### | | ????????????????## #?# #?????# ## | | ?????????????????# #?# #?????##### | | ????????????????## """ ##?? ??????????# ## | | ????????????????# """ #??? ??????????# ##### | | ????????????????# """ #??? ?????????## ##??# | | ????????????????# ##?? ?????????# [#??# | | ????????????????# ##? ????????# #?# | | ????????????????# #? ????????# ## | | ????????????????## #? ????????# #? | | ?????????????????# #??????????## #? | | ?????????????????## ### ##???????????# #? | | ??????????????????#### ##???##??????## #? | | ????????????????????# #?? ????????## ##? | | ????????????????????# @ ### #???????????###?? | | ????????????????????# d % ##??????????????? | | ????????????????????# d ##?????????????? | | ????????????????????# #?????????????? | | ????????????????????## #????????????? | | ????????????????????# ## ????????? | | ????????????????????# # #?? ?????????? | | ????????????????????## #??? ??????????? | | ????????????????????? ##????? ??????????? | | ???????????#????????## ##??????!???????????? | | ???????????# ????????### ##?????????????????? | | ????# #####]########## #?????????????????? | | ???# ! #?????????????????? | | ???# *% ### ##?????????????????? | | ???# ### ##??##??????????????????? | | ???# ????## ## #???????????????????????? | | ? ???????####### #???????????????????????? | | ???????????????# #???????????????????????? | | ##?????????????????## ##???????????????????????? | | ????????????????????#####????????????????????????? | | ?????????????????????????????????????????????????? | | ?????????????????????????????????????????????????? | | ?????????????????????????????????????????????????? | | ?????????????????????????????????????????????????? | | ?????????????????????????????????????????????????? | +----------------------------------------------------+ Best States ------------- Heat Dissipation 25 Energy Generation 10 Energy Capacity 250 Matter Stores 300 Matter Capacity 300 Sight Range 16 Terrain Scan Density 10 Evasion (%) 55 Item Schematics ----------------- None Robot Schematics ------------------ None Fabricated ------------ Nothing Repaired ---------- Nothing Studied --------- None Alien Tech Used ----------------- None Achievements -------------- Junior Dev Not Today, Chutes True Hacker root@ Challenges ------------ None Game ------ Seed StasisDeuteriumSteel Manual? 0 Play Time 00:20:03 Cumulative 3.8 hours Start 2026.01.19 @ 17:13:24 End 2026.01.19 @ 17:32:39 Sessions 1 Manual Loads 0 Difficulty Rogue Special Mode None Game No. 4 Rogue 4 Adventurer 0 Explorer 0 Win Type - Total 0 Types 0/0/0/0/0/0/0/0/0/0 Lore% 2 Gallery% 6 Achievement% 8 Wizard Run 0 Options --------- Layout 2 ASCII 0 Keyboard 0 Movement Mouse Keybinds 0 Fullscreen 1 Font 24/Smallcaps Map View 50x44 Zoom Use 0% Tactical HUD 0 Map Filters NONE Filters NONE Steam 1 RUN: 4023824b-9c7c-4071-9208-203b17c3e628